lending/lending_fUSD_20250122
["ID","MTS","AMOUNT","RATE_DAILY","PERIOD"]
[349946559,1737529861659,-500.0,0.00020809,2]
[349946560,1737529861669,-500.0,0.00020809,2]
[349946561,1737529861679,-513.27,0.00020809,2]
[349946562,1737529861688,-1148.88,0.00020809,2]
[349946563,1737529861697,-953.42,0.00020809,2]
[349946564,1737529861706,-500.0,0.00020809,2]
[349946565,1737529861716,-653.89,0.00020809,2]
[349946566,1737529861725,-2074.69,0.00020809,2]
[349946567,1737529861735,-500.0,0.00020809,2]
[349946568,1737529861745,-1178.81,0.00020809,2]
[349946569,1737529861755,-973.35,0.00020809,2]
[349946570,1737529861765,-500.0,0.00020809,2]
[349946571,1737529861774,-3313.27,0.00020809,2]
[349946572,1737529861783,-609.31,0.00020809,2]
[349946573,1737529861794,-500.0,0.00020809,2]
[349946574,1737529861803,-575.33,0.00020809,2]
[349946575,1737529861813,-1484.41,0.00020809,2]
[349946576,1737529861822,-708.86,0.00020809,2]
[349946577,1737529861831,-1956.81,0.00020809,2]
[349946578,1737529861841,-500.0,0.00020809,2]
[349946579,1737529861850,-1469.71,0.00020809,2]
[349946580,1737529861860,-2981.83,0.00020809,2]
[349946581,1737529861869,-2775.38,0.00020809,2]
[349946582,1737529861879,-1922.66,0.00020809,2]
[349946583,1737529861888,-1248.67,0.00020809,2]
[349946584,1737529861898,-672.01,0.00020809,2]
[349946585,1737529861908,-3316.5,0.00020809,2]
[349946586,1737529861918,-500.0,0.00020809,2]
[349946587,1737529861929,-914.05,0.00020809,2]
[349946588,1737529861939,-1021.47,0.00020809,2]
[349946589,1737529861948,-4783.23,0.00020809,2]
[349946590,1737529861957,-1593.19,0.00020809,2]
[349946591,1737529861967,-500.0,0.00020809,2]
[349946592,1737529861977,-709.2,0.00020809,2]
[349946593,1737529861986,-10193.0,0.00020809,2]
[349946594,1737529861996,-500.0,0.00020809,2]
[349946595,1737529862006,-1341.19,0.00020809,2]
[349946596,1737529862018,-6190.52,0.00020809,2]
[349946597,1737529862028,-5688.36,0.00020809,2]
[349946598,1737529862037,-500.0,0.00020809,2]
[349946599,1737529862047,-1341.24,0.00020809,2]
[349946600,1737529862057,-500.0,0.00020809,2]
[349946601,1737529862069,-2516.76,0.00020809,2]
[349946602,1737529862079,-527.78,0.00020809,2]
[349946603,1737529862089,-500.0,0.00020809,2]
[349946604,1737529862099,-1015.75,0.00020809,2]
[349946605,1737529862109,-636.88,0.00020809,2]
[349946606,1737529862119,-4247.11,0.00020809,2]
[349946607,1737529862129,-702.79,0.00020809,2]
[349946608,1737529862139,-500.0,0.00020809,2]
[349946609,1737529862148,-848.47,0.00020809,2]
[349946610,1737529862159,-908.52,0.00020809,2]
[349946611,1737529862170,-500.0,0.00020809,2]
[349946612,1737529862180,-1723.59,0.00020809,2]
[349946613,1737529862190,-3079.06,0.00020809,2]
[349946614,1737529862200,-619.39,0.00020809,2]
[349946615,1737529862210,-3591.78,0.00020809,2]
[349946616,1737529862219,-2538.2,0.00020809,2]
[349946617,1737529862229,-500.0,0.00020809,2]
[349946618,1737529862239,-500.0,0.00020809,2]
[349946619,1737529862249,-500.0,0.00020809,2]
[349946620,1737529862259,-966.25,0.00020809,2]
[349946621,1737529862268,-500.0,0.00020809,2]
[349946622,1737529862278,-717.54,0.00020809,2]
[349946623,1737529862287,-1456.38,0.00020809,2]
[349946624,1737529862297,-500.0,0.00020809,2]
[349946625,1737529862308,-1822.7,0.00020809,2]
[349946626,1737529862317,-526.05,0.00020809,2]
[349946627,1737529862326,-3479.05,0.00020809,2]
[349946628,1737529862336,-860.21,0.00020809,2]
[349946629,1737529862345,-903.51,0.00020809,2]
[349946630,1737529862355,-1992.09,0.00020809,2]
[349946631,1737529862364,-500.0,0.00020809,2]
[349946632,1737529862374,-1529.61,0.00020809,2]
[349946633,1737529862383,-3354.94,0.00020809,2]
[349946634,1737529862394,-560.81,0.00020809,2]
[349946635,1737529862403,-500.0,0.00020809,2]
[349946636,1737529862413,-1090.16,0.00020809,2]
[349946637,1737529862423,-500.0,0.00020809,2]
[349946638,1737529862433,-776.21,0.00020809,2]
[349946639,1737529862443,-1000.0,0.00020809,2]
[349946640,1737529862453,-1051.85,0.00020809,2]
[349946641,1737529862463,-770.14,0.00020809,2]
[349946642,1737529862473,-500.0,0.00020809,2]
[349946643,1737529862482,-847.9,0.00020809,2]
[349946644,1737529862492,-500.04,0.00020809,2]
[349946645,1737529862501,-512.12466051,0.00020809,2]
[349946646,1737529862511,-500.0,0.0002081,2]
[349946647,1737529862520,-386.14541892,0.0002081,2]
[349946648,1737529862531,-500.0,0.0002081,2]
[349946649,1737529862540,-500.0,0.0002081,2]
[349946650,1737529862550,-542.26,0.0002081,2]
[349946651,1737529862559,-500.0,0.0002081,2]
[349946652,1737529862569,-514.0506746,0.0002081,2]
[349946653,1737529862578,-500.0,0.0002081,2]
[349946654,1737529862588,-687.88,0.0002081,2]
[349946655,1737529862597,-500.0,0.0002081,2]
[349946656,1737529862607,-500.0,0.0002081,2]
[349946657,1737529862616,-500.0,0.0002081,2]
[349946658,1737529862626,-500.0,0.0002081,2]
[349946659,1737529862636,-500.0,0.0002081,2]
[349946660,1737529862645,-705.63,0.0002081,2]
[349946661,1737529862655,-500.0,0.0002081,2]
[349946662,1737529862665,-500.0,0.0002081,2]
[349946663,1737529862674,-500.0,0.0002081,2]
[349946664,1737529862683,-500.0,0.0002081,2]
[349946665,1737529862693,-638.86,0.0002081,2]
[349946666,1737529862702,-500.0,0.0002081,2]
[349946667,1737529862712,-500.0,0.0002081,2]
[349946668,1737529862721,-500.0,0.0002081,2]
[349946669,1737529862731,-517.55,0.0002081,2]
[349946670,1737529862740,-500.0,0.0002081,2]
[349946671,1737529862749,-714.2,0.0002081,2]
[349946672,1737529862759,-500.0,0.0002081,2]
[349946673,1737529862768,-500.0,0.0002081,2]
[349946674,1737529862777,-862.22,0.0002081,2]
[349946675,1737529862786,-500.0,0.0002081,2]
[349946676,1737529862796,-500.0,0.0002081,2]
[349946677,1737529862805,-598.82,0.0002081,2]
[349946678,1737529862814,-1030.51,0.0002081,2]
[349946679,1737529862824,-500.0,0.0002081,2]
[349946680,1737529862833,-1375.23,0.0002081,2]
[349946681,1737529862842,-533.65,0.0002081,2]
[349946682,1737529862852,-763.67,0.0002081,2]
[349946683,1737529862861,-500.0,0.0002081,2]
[349946684,1737529862871,-736.55,0.0002081,2]
[349946685,1737529862880,-500.0,0.0002081,2]
[349946686,1737529862890,-500.0,0.0002081,2]
[349946687,1737529862899,-500.0,0.0002081,2]
[349946688,1737529862909,-500.0,0.0002081,2]
[349946689,1737529862918,-500.0,0.0002081,2]
[349946690,1737529862928,-500.0,0.0002081,2]
[349946691,1737529862938,-1550.32,0.0002081,2]
[349946692,1737529862947,-906.23,0.0002081,2]
[349946693,1737529862956,-1240.63,0.0002081,2]
[349946694,1737529862966,-500.0,0.0002081,2]
[349946695,1737529862975,-955.97,0.0002081,2]
[349946696,1737529862984,-758.19,0.0002081,2]
[349946697,1737529862993,-500.0,0.0002081,2]
[349946698,1737529863003,-500.0,0.0002081,2]
[349946699,1737529863013,-500.0,0.0002081,2]
[349946700,1737529863025,-915.15,0.0002081,2]
[349946701,1737529863035,-512.22749661,0.0002081,2]
[349946702,1737529863045,-500.0,0.0002081,2]
[349946703,1737529863054,-500.0,0.0002081,2]
[349946704,1737529863065,-500.0,0.0002081,2]
[349946705,1737529863075,-500.0,0.0002081,2]
[349946706,1737529863086,-500.0,0.0002081,2]
[349946707,1737529863097,-500.0,0.0002081,2]
[349946708,1737529863109,-2855.53,0.0002081,2]
[349946709,1737529863119,-2566.89,0.0002081,2]
[349946710,1737529863129,-1031.4948883,0.00020814,5]
[349946711,1737529863139,-1031.4948883,0.00020814,5]
[349946712,1737529863150,-500.0,0.00020817,2]
[349946713,1737529863161,-1001.66726204,0.00020821,2]
[349946714,1737529863172,-2907.05,0.00020821,2]
[349946715,1737529863182,-500.0,0.00020821,2]
[349946716,1737529863193,-1849.23,0.00020821,2]
[349946717,1737529863203,-958.45,0.00020821,2]
[349946718,1737529863213,-2595.22,0.00020821,2]
[349946719,1737529863223,-1488.27,0.00020821,2]
[349946720,1737529863233,-3225.59,0.00020821,2]
[349946721,1737529863243,-1733.274758,0.00020821,2]
[349946722,1737529863253,-5301.98,0.00020821,2]
[349946723,1737529863263,-2429.15,0.00020821,2]
[349946724,1737529863272,-1239.25,0.00020821,2]
[349946725,1737529863282,-1238.73,0.00020821,2]
[349946726,1737529863291,-500.0,0.00020821,2]
[349946727,1737529863301,-1170.583413,0.00020821,2]
[349946728,1737529863311,-500.0,0.00020821,2]
[349946729,1737529863321,-1699.68,0.00020821,2]
[349946730,1737529863331,-2493.36,0.00020821,2]
[349946731,1737529863341,-2152.93,0.00020821,2]
[349946732,1737529863350,-500.0,0.00020821,2]
[349946733,1737529863360,-3276.6,0.00020821,2]
[349946734,1737529863371,-1165.12,0.00020821,2]
[349946735,1737529863381,-1394.36,0.00020821,2]
[349946736,1737529863390,-809.38,0.00020821,2]
[349946737,1737529863401,-1475.31,0.00020821,2]
[349946738,1737529863411,-688.14,0.00020821,2]
[349946739,1737529863420,-500.0,0.00020821,2]
[349946740,1737529863431,-4786.95,0.00020821,2]
[349946741,1737529863441,-1695.25,0.00020821,2]
[349946742,1737529863451,-1472.15,0.00020821,2]
[349946743,1737529863460,-3787.07,0.00020821,2]
[349946744,1737529863470,-1234.08,0.00020821,2]
[349946745,1737529863479,-1624.99,0.00020821,2]
[349946746,1737529863489,-1499.85,0.00020821,2]
[349946747,1737529863499,-1816.57,0.00020821,2]
[349946748,1737529863508,-906.98,0.00020821,2]
[349946749,1737529863518,-2331.61,0.00020821,2]
[349946750,1737529863527,-1917.72,0.00020821,2]
[349946751,1737529863537,-1866.02,0.00020821,2]
[349946752,1737529863547,-691.42,0.00020821,2]
[349946753,1737529863556,-1206.34,0.00020821,2]
[349946754,1737529863567,-500.0,0.00020821,2]
[349946755,1737529863576,-2875.88,0.00020821,2]
[349946756,1737529863586,-1289.63,0.00020821,2]
[349946757,1737529863595,-3720.26,0.00020821,2]
[349946758,1737529863605,-2211.76,0.00020821,2]
[349946759,1737529863614,-174.662595,0.00020821,2]
[349946760,1737529863624,-1958.37,0.00020821,2]
[349946761,1737529863633,-3222.96,0.00020821,2]
[349946762,1737529863643,-4970.02,0.00020821,2]
[349946763,1737529863652,-1265.23,0.00020821,2]
[349946764,1737529863661,-500.0,0.00020821,2]
[349946765,1737529863671,-1678.79,0.00020821,2]
[349946766,1737529863680,-3887.04,0.00020821,2]
[349946767,1737529863690,-1716.78,0.00020821,2]
[349946768,1737529863699,-500.0,0.00020821,2]
[349946769,1737529863710,-500.0,0.00020821,2]
[349946770,1737529863719,-780.76,0.00020821,2]
[349946771,1737529863729,-6061.4,0.00020821,2]
[349946772,1737529863738,-500.0,0.00020821,2]
[349946773,1737529863748,-500.0,0.00020821,2]
[349946774,1737529863758,-500.0,0.00020821,2]
[349946775,1737529863768,-864.5,0.00020821,2]
[349946776,1737529863778,-1204.94,0.00020821,2]
[349946777,1737529863788,-795.94,0.00020821,2]
[349946778,1737529863797,-210.40589541,0.00020824,2]
[349946779,1737529863807,-2568.0737881,0.00020831,2]
[349946780,1737529863816,-210.40589541,0.00020833,2]
[349946781,1737529863826,-210.40589541,0.00020836,2]
[349946782,1737529863836,-2504.86,0.00020851,2]
[349946783,1737529863845,-2574.25,0.00020852,2]
[349946784,1737529863854,-334.4538283,0.00020856,2]
[349946785,1737529863864,-334.4538283,0.00020862,2]
[349946786,1737529863874,-2523.84,0.00020865,2]
[349946787,1737529863884,-205.07867488,0.00020866,2]
[349946788,1737529863893,-2568.0737881,0.00020872,2]
[349946789,1737529863903,-150.0,0.00020873,2]
[349946790,1737529863913,-200.0,0.00020877,2]
[349946791,1737529863923,-512.12466051,0.00020878,2]
[349946792,1737529863932,-334.4538283,0.00020885,2]
[349946793,1737529863942,-2568.0737881,0.00020886,2]
[349946794,1737529863952,-512.12466051,0.00020895,2]
[349946795,1737529863962,-2568.0737881,0.00020899,2]
[349946796,1737529863975,-13679.22539467,0.000209,2]
[349946797,1737529863984,-43977.66724978,0.000209,2]
[349946798,1737529863995,-2504.86,0.000209,2]
[349946799,1737529864004,-376.43470905,0.000209,2]
[349946800,1737529864016,-210.40589541,0.00020902,2]
[349946801,1737529864028,-210.40589541,0.00020908,2]
[349946802,1737529864037,-2568.0737881,0.00020913,2]
[349946803,1737529864047,-200.0,0.00020922,2]
[349946804,1737529864057,-512.12466051,0.00020922,2]
[349946805,1737529864068,-205.07867488,0.00020934,2]
[349946806,1737529864078,-580.16,0.00020945,2]
[349946807,1737529864088,-150.0,0.00020956,4]
[349946808,1737529864100,-1250.6,0.00020961,2]
[349946809,1737529864110,-4291.58,0.00020977,2]
[349946810,1737529864120,-2000.0,0.00021,2]
[349946811,1737529864130,-8487.69801687,0.00021,2]
[349946812,1737529864140,-11395.70340254,0.00021,7]
[349946813,1737529864149,-1000.0,0.00021,21]
[349946814,1737529864159,-10000.0,0.00021,2]
[349946815,1737529864169,-10000.0,0.00021,5]
[349946816,1737529864179,-10000.0,0.00021,2]
[349946817,1737529864190,-205.07867488,0.00021003,2]
[349946818,1737529864200,-447.056,0.00021036,2]
[349946819,1737529864210,-567.0,0.00021036,2]
[349946820,1737529864219,-2948.0,0.00021036,2]
[349946821,1737529864229,-156.2328181,0.00021069,2]
[349946822,1737529864238,-1411.8119872,0.00021069,2]
[349946823,1737529864248,-745.9667541,0.00021069,2]
[349946824,1737529864385,-668.9957997,0.00021069,2]
[349946825,1737529864418,-205.07867488,0.00021072,2]
[349946826,1737529864428,-500.0,0.00021082,2]
[349946827,1737529864438,-500.0,0.00021082,2]
[349946828,1737529864447,-500.0,0.00021082,2]
[349946829,1737529864457,-500.0,0.00021082,2]
[349946830,1737529864466,-580.16,0.00021082,2]
[349946831,1737529864476,-371.69743833,0.00021082,2]
[349946832,1737529864486,-840.46,0.00021082,2]
[349946833,1737529864496,-500.0,0.00021082,2]
[349946834,1737529864505,-500.0,0.00021082,2]
[349946835,1737529864515,-500.0,0.00021082,2]
[349946836,1737529864526,-500.0,0.00021082,2]
[349946837,1737529864536,-500.0,0.00021082,2]
[349946838,1737529864545,-333.71716556,0.00021082,2]
[349946839,1737529864554,-500.0,0.00021082,2]
[349946840,1737529864564,-500.0,0.00021082,2]
[349946841,1737529864574,-500.0,0.00021082,2]
[349946842,1737529864583,-500.0,0.00021082,2]
[349946843,1737529864593,-557.91,0.00021082,2]
[349946844,1737529864603,-500.0,0.00021082,2]
[349946845,1737529864612,-500.0,0.00021082,2]
[349946846,1737529864622,-500.0,0.00021082,2]
[349946847,1737529864632,-1119.81,0.00021082,2]
[349946848,1737529864641,-667.81,0.00021082,2]
[349946849,1737529864651,-500.0,0.00021082,2]
[349946850,1737529864662,-500.0,0.00021082,2]
[349946851,1737529864672,-515.24519522,0.00021082,2]
[349946852,1737529864681,-646.88,0.00021083,2]
[349946853,1737529864691,-500.0,0.00021083,2]
[349946854,1737529864701,-500.0,0.00021083,2]
[349946855,1737529864710,-500.0,0.00021083,2]
[349946856,1737529864720,-590.43,0.00021083,2]
[349946857,1737529864730,-549.98,0.00021083,2]
[349946858,1737529864741,-810.63,0.00021083,2]
[349946859,1737529864750,-500.0,0.00021083,2]
[349946860,1737529864760,-500.0,0.00021083,2]
[349946861,1737529864770,-500.0,0.00021083,2]
[349946862,1737529864779,-500.0,0.00021083,2]
[349946863,1737529864790,-500.0,0.00021083,2]
[349946864,1737529864799,-969.87,0.00021083,2]
[349946865,1737529864809,-500.0,0.00021083,2]
[349946866,1737529864819,-1152.22,0.00021083,2]
[349946867,1737529864829,-159.32,0.00021083,2]
[349946868,1737529864839,-500.0,0.00021083,2]
[349946869,1737529864849,-500.0,0.00021083,2]
[349946870,1737529864859,-567.82,0.00021083,2]
[349946871,1737529864868,-799.97,0.00021083,2]
[349946872,1737529864878,-563.38,0.00021083,2]
[349946873,1737529864887,-606.7,0.00021083,2]
[349946874,1737529864898,-500.0,0.00021083,2]
[349946875,1737529864907,-500.0,0.00021083,2]
[349946876,1737529864917,-500.0,0.00021083,2]
[349946877,1737529864928,-500.0,0.00021083,2]
[349946878,1737529864938,-550.55,0.00021083,2]
[349946879,1737529864948,-500.0,0.00021083,2]
[349946880,1737529864957,-775.8,0.00021083,2]
[349946881,1737529864967,-555.58,0.00021083,2]
[349946882,1737529864976,-1032.89,0.00021083,2]
[349946883,1737529864987,-1152.75,0.00021083,2]
[349946884,1737529864996,-500.0,0.00021083,2]
[349946885,1737529865005,-500.0,0.00021083,2]
[349946886,1737529865015,-500.0,0.00021083,2]
[349946887,1737529865028,-500.0,0.00021083,2]
[349946888,1737529865038,-500.0,0.00021083,2]
[349946889,1737529865047,-500.0,0.00021083,2]
[349946890,1737529865058,-697.99,0.00021083,2]
[349946891,1737529865068,-1141.71,0.00021083,2]
[349946892,1737529865078,-500.0,0.00021083,2]
[349946893,1737529865088,-1233.73,0.00021083,2]
[349946894,1737529865098,-542.63,0.00021083,2]
[349946895,1737529865108,-712.69,0.00021083,2]
[349946896,1737529865118,-1327.92,0.00021083,2]
[349946897,1737529865129,-649.24,0.00021083,2]
[349946898,1737529865138,-1423.77,0.00021083,2]
[349946899,1737529865148,-500.0,0.00021083,2]
[349946900,1737529865158,-500.0,0.00021083,2]
[349946901,1737529865168,-638.92,0.00021083,2]
[349946902,1737529865178,-818.33,0.00021083,2]
[349946903,1737529865189,-1425.64,0.00021083,2]
[349946904,1737529865198,-500.0,0.00021083,2]
[349946905,1737529865208,-500.0,0.00021083,2]
[349946906,1737529865218,-944.74,0.00021083,2]
[349946907,1737529865227,-500.0,0.00021083,2]
[349946908,1737529865237,-1159.36,0.00021083,2]
[349946909,1737529865247,-572.47,0.00021083,2]
[349946910,1737529865258,-500.0,0.00021083,2]
[349946911,1737529865268,-1134.67,0.00021083,2]
[349946912,1737529865278,-500.0,0.00021083,2]
[349946913,1737529865287,-543.06,0.00021083,2]
[349946914,1737529865296,-500.0,0.00021083,2]
[349946915,1737529865307,-500.0,0.00021083,2]
[349946916,1737529865316,-757.85,0.00021083,2]
[349946917,1737529865326,-500.0,0.00021083,2]
[349946918,1737529865336,-500.0,0.00021083,2]
[349946919,1737529865346,-1581.43,0.00021083,2]
[349946920,1737529865356,-1021.03,0.00021083,2]
[349946921,1737529865366,-522.18,0.00021083,2]
[349946922,1737529865375,-208.57681519,0.00021083,2]
[349946923,1737529865386,-1732.87,0.00021083,2]
[349946924,1737529865396,-736.28,0.00021083,2]
[349946925,1737529865405,-500.0,0.00021083,2]
[349946926,1737529865415,-694.23,0.00021083,2]
[349946927,1737529865425,-654.06,0.00021083,2]
[349946928,1737529865436,-500.0,0.00021083,2]
[349946929,1737529865445,-500.0,0.00021083,2]
[349946930,1737529865455,-1211.07,0.00021083,2]
[349946931,1737529865464,-529.94,0.00021083,2]
[349946932,1737529865475,-500.0,0.00021083,2]
[349946933,1737529865484,-500.0,0.00021083,2]
[349946934,1737529865494,-500.0,0.00021083,2]
[349946935,1737529865503,-500.0,0.00021083,2]
[349946936,1737529865513,-500.0,0.00021083,2]
[349946937,1737529865522,-661.66,0.00021083,2]
[349946938,1737529865533,-500.0,0.00021083,2]
[349946939,1737529865542,-500.0,0.00021083,2]
[349946940,1737529865552,-866.42,0.00021083,2]
[349946941,1737529865561,-500.0,0.00021083,2]
[349946942,1737529865571,-500.0,0.00021083,2]
[349946943,1737529865580,-1183.63,0.00021083,2]
[349946944,1737529865590,-1193.16,0.00021083,2]
[349946945,1737529865599,-500.0,0.00021083,2]
[349946946,1737529865608,-500.0,0.00021083,2]
[349946947,1737529865618,-500.0,0.00021083,2]
[349946948,1737529865628,-500.0,0.00021083,2]
[349946949,1737529865638,-708.55,0.00021083,2]
[349946950,1737529865648,-1284.7,0.00021083,2]
[349946951,1737529865658,-500.0,0.00021083,2]
[349946952,1737529865667,-500.0,0.00021083,2]
[349946953,1737529865676,-500.0,0.00021083,2]
[349946954,1737529865686,-937.43,0.00021083,2]
[349946955,1737529865695,-1017.92,0.00021083,2]
[349946956,1737529865705,-1193.29,0.00021083,2]
[349946957,1737529865714,-500.0,0.00021083,2]
[349946958,1737529865723,-500.0,0.00021083,2]
[349946959,1737529865733,-1122.95,0.00021083,2]
[349946960,1737529865742,-1359.17,0.00021083,2]
[349946961,1737529865752,-821.95,0.00021083,2]
[349946962,1737529865762,-795.35,0.00021083,2]
[349946963,1737529865772,-750.45,0.00021083,2]
[349946964,1737529865782,-500.0,0.00021083,2]
[349946965,1737529865791,-920.57,0.00021083,2]
[349946966,1737529865801,-500.0,0.00021083,2]
[349946967,1737529865810,-500.0,0.00021083,2]
[349946968,1737529865819,-1819.89,0.00021083,2]
[349946969,1737529865829,-500.0,0.00021083,2]
[349946970,1737529865839,-1136.19,0.00021083,2]
[349946971,1737529865849,-500.0,0.00021083,2]
[349946972,1737529865858,-500.0,0.00021083,2]
[349946973,1737529865867,-513.27,0.00021083,2]
[349946974,1737529865877,-1148.88,0.00021083,2]
[349946975,1737529865886,-953.42,0.00021083,2]
[349946976,1737529865896,-500.0,0.00021083,2]
[349946977,1737529865905,-653.89,0.00021083,2]
[349946978,1737529865915,-2074.69,0.00021083,2]
[349946979,1737529865924,-500.0,0.00021083,2]
[349946980,1737529865934,-1178.81,0.00021083,2]
[349946981,1737529865943,-973.35,0.00021083,2]
[349946982,1737529865953,-500.0,0.00021083,2]
[349946983,1737529865962,-3313.27,0.00021083,2]
[349946984,1737529865971,-609.31,0.00021083,2]
[349946985,1737529865981,-500.0,0.00021083,2]
[349946986,1737529865990,-575.33,0.00021083,2]
[349946987,1737529866001,-708.86,0.00021083,2]
[349946988,1737529866011,-1956.81,0.00021083,2]
[349946989,1737529866023,-500.0,0.00021083,2]
[349946990,1737529866033,-1484.41,0.00021083,2]
[349946991,1737529866042,-1469.71,0.00021083,2]
[349946992,1737529866051,-2981.83,0.00021083,2]
[349946993,1737529866061,-2775.38,0.00021083,2]
[349946994,1737529866071,-1922.66,0.00021083,2]
[349946995,1737529866080,-1248.67,0.00021083,2]
[349946996,1737529866090,-672.01,0.00021083,2]
[349946997,1737529866102,-3316.5,0.00021083,2]
[349946998,1737529866116,-500.0,0.00021083,2]
[349946999,1737529866126,-914.05,0.00021083,2]
[349947000,1737529866136,-1021.47,0.00021083,2]
[349947001,1737529866145,-4783.23,0.00021083,2]
[349947002,1737529866154,-1593.19,0.00021083,2]
[349947003,1737529866164,-500.0,0.00021083,2]
[349947004,1737529866174,-709.2,0.00021083,2]
[349947005,1737529866184,-10193.0,0.00021083,2]
[349947006,1737529866194,-500.0,0.00021083,2]
[349947007,1737529866204,-1341.19,0.00021083,2]
[349947008,1737529866214,-6190.52,0.00021083,2]
[349947009,1737529866223,-5688.36,0.00021083,2]
[349947010,1737529866233,-500.0,0.00021083,2]
[349947011,1737529866245,-1341.24,0.00021083,2]
[349947012,1737529866255,-2516.76,0.00021083,2]
[349947013,1737529866265,-500.0,0.00021083,2]
[349947014,1737529866274,-1015.75,0.00021083,2]
[349947015,1737529866284,-636.88,0.00021083,2]
[349947016,1737529866294,-4247.11,0.00021083,2]
[349947017,1737529866304,-702.79,0.00021083,2]
[349947018,1737529866313,-500.0,0.00021083,2]
[349947019,1737529866323,-848.47,0.00021083,2]
[349947020,1737529866333,-908.52,0.00021083,2]
[349947021,1737529866342,-500.0,0.00021083,2]
[349947022,1737529866352,-1723.59,0.00021083,2]
[349947023,1737529866361,-3079.06,0.00021083,2]
[349947024,1737529866371,-619.39,0.00021083,2]
[349947025,1737529866382,-3591.78,0.00021083,2]
[349947026,1737529866392,-2538.2,0.00021083,2]
[349947027,1737529866402,-500.0,0.00021083,2]
[349947028,1737529866412,-500.0,0.00021083,2]
[349947029,1737529866422,-500.0,0.00021083,2]
[349947030,1737529866432,-966.25,0.00021083,2]
[349947031,1737529866442,-500.0,0.00021083,2]
[349947032,1737529866451,-717.54,0.00021083,2]
[349947033,1737529866460,-1456.38,0.00021083,2]
[349947034,1737529866470,-500.0,0.00021083,2]
[349947035,1737529866479,-1822.7,0.00021083,2]
[349947036,1737529866489,-526.05,0.00021083,2]
[349947037,1737529866499,-3479.05,0.00021083,2]
[349947038,1737529866508,-860.21,0.00021083,2]
[349947039,1737529866517,-903.51,0.00021083,2]
[349947040,1737529866528,-1992.09,0.00021083,2]
[349947041,1737529866537,-500.0,0.00021083,2]
[349947042,1737529866547,-1529.61,0.00021083,2]
[349947043,1737529866556,-3354.94,0.00021083,2]
[349947044,1737529866566,-560.81,0.00021083,2]
[349947045,1737529866575,-500.0,0.00021083,2]
[349947046,1737529866584,-1090.16,0.00021083,2]
[349947047,1737529866595,-500.0,0.00021083,2]
[349947048,1737529866604,-776.21,0.00021083,2]
[349947049,1737529866614,-1000.0,0.00021083,2]
[349947050,1737529866624,-1051.85,0.00021083,2]
[349947051,1737529866634,-770.14,0.00021083,2]
[349947052,1737529866644,-500.0,0.00021083,2]
[349947053,1737529866653,-847.9,0.00021083,2]
[349947054,1737529866663,-500.04,0.00021083,2]
[349947055,1737529866672,-150.0,0.00021083,4]
[349947056,1737529866682,-500.0,0.00021084,2]
[349947057,1737529866691,-500.0,0.00021084,2]
[349947058,1737529866701,-500.0,0.00021084,2]